Workbook

Sheet SBB
A2: SBB Budget 2015-2016
A3: Item | B3: # of Unit | C3: Amount / Unit (Rs) | D3: Amount / Unit (Rs) Amended | E3: Time (month) | F3: Total Amount Amended | G3: Comments
A4: A. Head Teacher’s Salary | B4: 1 | C4: 2100 | D4: 2400 | E4: 12 | F4: =D4*E4 -> 28800 | G4: Increase Rs. 300
A5: Teacher’s Salary | B5: 9 | C5: 2000 | D5: 2250 | E5: 12 | F5: =D5*B5*E5 -> 243000 | G5: Increased Rs. 250
A6: Staff Salary | B6: 1 | C6: 1500 | D6: 1600 | E6: 12 | F6: =D6*E6 -> 19200 | G6: Increased Rs. 100
A7: Cook | B7: 2 | C7: 1000 | D7: 1100 | E7: 12 | F7: =D7*B7*E7 -> 26400 | G7: Increased Rs. 100
A8: Education material | B8: 190 | C8: 300 | F8: =B8*C8 -> 57000
A9: Dress | B9: 190 | C9: 200 | F9: =B9*C9 -> 38000
A10: Meal | B10: 203 | C10: 10 | E10: 276 | F10: =B10*C10*E10 -> 560280
A11: Medicine | C11: 300 | E11: 12 | F11: 3600
A12: Sanitation | C12: 2500 | F12: 2500
A13: Sports Equipments Sports, Annual programs & Function | C13: 7500 | F13: 7500
A14: TLM | B14: 10 | C14: 25 | E14: 12 | F14: 3000
A15: Teacher's Orientation Training | C15: 4000 | F15: 4000
A16: Documentary, Office Expense Printing Stationary | C16: 3000 | F16: 3000
A17: News Paper | C17: 1500 | F17: 1500
A18: Social awareness & observation days | C18: 5000 | F18: 5000
A19: Creative activates | C19: 7000 | F19: 7000
A20: Making of new benches 15 pairs @ 3000/- per pair | F20: 45000 | G20: Next Site Visit should be able to account for 15 pair of new benches
A21: Total Expenses | F21: =SUM(F4:F20) -> 1054780
A22: B. Local contribution Rs. 3 per child/month & guardians' contribution contribution of 5 pair new benches | F22: 31250
F23: 15000
A25: Contribution | F25: =SUM(F22:F24) -> 46250
A26: Asking from Asha | F26: =F21-F25 -> 1008530

Sheet SSB
A2: SSB Budget 2015-2016
A3: Item | B3: # of Unit | C3: Amount / Unit (Rs) | D3: Amount / Unit (Rs) Amended | E3: Time (month) | F3: Total Amount Amended | G3: Comments
A4: A. Head Teacher's Salary | B4: 1 | C4: 2100 | D4: 2400 | E4: 12 | F4: =D4*E4 -> 28800 | G4: Increase Rs. 300
A5: Teacher’s Salary | B5: 10 | C5: 2000 | D5: 2250 | E5: 12 | F5: =B5*D5*12 -> 270000 | G5: Increased Rs. 250
A6: Staff Salary | B6: 1 | C6: 1500 | D6: 1600 | E6: 12 | F6: =D6*E6 -> 19200 | G6: Increased Rs. 100
A7: Cook | B7: 3 | C7: 900 | D7: 1100 | E7: 12 | F7: =B7*D7*E7 -> 39600 | G7: Increased Rs. 100
A8: Education material | B8: 295 | C8: 225 | F8: 66375
A9: Dress | B9: 295 | C9: 200 | F9: 59000
A10: Meal | B10: 310 | C10: 10 | E10: 276 | F10: 855600
A11: Medicine | C11: 300 | E11: 12 | F11: 3600
A12: Sanitation | C12: 2500 | F12: 2500
A13: Sports Equipments Annual Sports & Function | C13: 8000 | F13: 8000
A14: TLM | B14: 11 | C14: 25 | E14: 12 | F14: 3300
A15: Teacher's Orientation Training | C15: 4000 | F15: 4000
A16: Documentary, Office Expense & Printing Stationary | C16: 3200 | F16: 3200
A17: News Paper | C17: 1500 | F17: 1500
A18: Social awareness & observation days | C18: 5000 | F18: 5000
A19: Creative activities | C19: 7000 | F19: 7000
A20: Repair & Maintenance for furniture &School Building | C20: 3000 | F20: 3000
A21: Total Expenses | F21: =SUM(F4:F20) -> 1379675
A22: B. Local contribution Rs. 3 per child per month & guardians' contribution | F22: 40000
A23: Asking from Asha | F23: =F21-F22 -> 1339675

Sheet Health
A2: Health Budget 2015-2016
A3: A. Hospital | B3: Unit | C3: Rate/Unit | D3: per month | E3: Total
A4: Doctor | B4: 1 | C4: 9000 | D4: 9000 | E4: 108000
A5: Travelling (doctor) | C5: 1000 | D5: 1000 | E5: 12000
E6: =SUM(E4:E5) -> 120000

Sheet Special
A2: Budget for 19 Special Children (All Residential, 11 boys, 8 girls) 2015-16
A3: Items | B3: Unit/No.s | C3: Expense per unit | D3: Time(months) | E3: Expense
A4: Supervisor cum teacher | B4: 1 | C4: 1000 | D4: 1000 | E4: 12000
A5: Computer Teacher | B5: 1 | C5: 1500 | D5: 12 | E5: =C5*D5 -> 18000
A6: Food | B6: 19 | C6: 900 | D6: 12 | E6: 205200
A7: Education | B7: 19 | C7: 300 | E7: 5700
A8: Clothing | B8: 19 | C8: 500 | E8: 9500
A9: Toiletries | B9: 19 | C9: 100 | E9: 1900
A10: Bedding | B10: 19 | C10: 200 | E10: 3800
A11: Sports program | E11: 1600
A12: Creative activities | E12: 1500
A13: Asking from Asha | E13: =SUM(E4:E12) -> 259200

Sheet Overall
A2: Project | B2: Amount Requested by CMS | C2: Amount Approved by Asha | D2: Comments
A3: SBB | B3: 974330 | C3: 1008530 | D3: We increased salaries
A4: SSB | B4: 1297675 | C4: 1339675 | D4: We increased salaries , matched cooks' salaries w/SBB cooks' salaries
A5: Health | B5: 198500 | C5: 120000 | D5: Cut all expenses except Doc's expenses
A6: Special | B6: 259200 | C6: 259200
A7: NFE | B7: 1137320 | D7: No NFE Support at this point ( on hold)
A8: Total | B8: =SUM(B3:B7) -> 3867025 | C8: =SUM(C3:C6) -> 2727405 | D8: Withot NFE, CMS requested (2,729,705)
